bitfinex/quotes_ETHUSD_20241018
["timestamp","ask_amount","ask_price","bid_price","bid_amount"]
[1729239328793,3.78663,2640.9,2640.3,0.8284]
[1729239329000,3.78689,2640.7,2640.3,0.8284]
[1729239329827,0.8142,2640.7,2640.1,0.8284]
[1729239329996,3.78756,2640.3,2639.7,0.8284]
[1729239330324,3.78781,2640.1,2639.7,0.8284]
[1729239330702,0.8142,2640.2,2639.7,4.6166]
[1729239331005,4.55383,2640.5,2639.9,3.78801]
[1729239331194,4.55383,2640.5,2639.8,3.78806]
[1729239331622,4.55383,2640.5,2640.0,3.78787]
[1729239331823,0.7666,2640.5,2640.0,7.57567]
[1729239332024,3.78696,2640.7,2640.1,0.7636]
[1729239332894,3.78704,2640.6,2640.1,0.7636]
[1729239333090,3.78696,2640.7,2640.1,0.7636]
[1729239333316,3.78701,2640.7,2640.1,4.55131]
[1729239333634,3.78717,2640.5,2640.1,0.7636]
[1729239335104,3.78704,2640.6,2640.1,4.55131]
[1729239337102,3.7869,2640.7,2640.2,3.78758]
[1729239337301,3.7869,2640.7,2640.1,8.33895]
[1729239337540,3.7869,2640.7,2640.1,4.55124]
[1729239337731,3.7869,2640.7,2640.2,3.78756]
[1729239338059,3.7869,2640.7,2640.1,8.33886]
[1729239338205,3.7869,2640.7,2640.1,8.33888]
[1729239338538,3.7869,2640.7,2640.1,4.55122]
[1729239339444,3.7869,2640.7,2640.2,3.78758]
[1729239340327,3.78668,2640.9,2640.2,3.78758]
[1729239340641,3.78674,2640.8,2640.3,3.78731]
[1729239341042,3.78739,2640.4,2639.9,3.78794]
[1729239341199,3.78739,2640.4,2639.9,4.54054]
[1729239341710,3.78701,2640.6,2639.9,4.54054]
[1729239342038,7.57414,2640.6,2640.0,3.78778]
[1729239342421,3.78701,2640.6,2640.1,3.86337944]
[1729239342615,3.78701,2640.6,2640.1,3.78763]
[1729239342810,0.7711,2640.7,2640.1,3.78763]
[1729239343140,3.78668,2640.9,2640.4,3.78724]
[1729239343337,3.78668,2640.9,2640.3,3.7873]
[1729239343538,3.78668,2640.9,2640.3,7.57467]
[1729239344351,3.78668,2640.9,2640.3,3.7873]
[1729239344645,3.78685,2640.8,2640.3,3.7873]
[1729239345350,3.78668,2640.9,2640.3,7.57463]
[1729239345703,3.78668,2640.9,2640.3,3.7873]
[1729239346016,3.78668,2640.9,2640.4,3.78728]
[1729239346543,4.56907,2641.0,2640.5,3.78715]
[1729239347117,0.7826,2641.0,2640.3,7.57463]
[1729239347334,3.78671,2640.9,2640.4,3.78728]
[1729239347539,0.7826,2641.0,2640.5,3.78714]
[1729239347949,4.56911,2641.0,2640.5,3.78714]
[1729239349020,0.7826,2641.0,2640.5,3.78708]
[1729239349524,4.56905,2641.0,2640.5,7.57416]
[1729239349855,4.56905,2641.0,2640.5,3.78708]
[1729239350976,4.56905,2641.0,2640.6,0.7667]
[1729239351286,3.78638,2641.1,2640.6,4.55361]
[1729239351579,3.78639,2641.1,2640.5,3.78707]
[1729239351749,0.8043,2640.9,2640.5,3.78707]
[1729239352469,0.8043,2640.9,2640.5,7.57412]
[1729239352665,0.8043,2640.9,2640.5,3.78705]
[1729239352867,0.8043,2640.9,2640.5,7.57412]
[1729239353277,3.78639,2641.1,2640.6,3.787]
[1729239353965,4.5488,2641.2,2640.7,3.78683]
[1729239354147,3.78616,2641.2,2640.8,0.7804]
[1729239354542,3.78639,2641.1,2640.8,0.7804]
[1729239354774,3.7863,2641.1,2640.5,3.78706]
[1729239354956,3.78671,2640.9,2640.4,4.60641]
[1729239355871,3.78671,2640.9,2640.4,8.39362]
[1729239356381,3.78671,2640.9,2640.4,4.60641]
[1729239357359,3.78671,2640.9,2640.4,4.60639]
[1729239357560,3.78671,2640.9,2640.4,8.39362]
[1729239357980,3.78671,2640.9,2640.4,4.60639]
[1729239358193,3.78675,2640.8,2640.4,0.8192]
[1729239358395,3.78671,2640.9,2640.4,4.60646]
[1729239358558,3.78675,2640.8,2640.4,0.8192]
[1729239358758,3.78671,2640.9,2640.4,0.8192]
[1729239359123,0.7718,2640.8,2640.4,0.8192]
[1729239360669,0.7718,2640.8,2639.9,6.79687992]
[1729239360670,3.78701,2640.6,2639.9,3.78951822]
[1729239360870,3.78701,2640.6,2640.0,0.8242]
[1729239360871,3.78738,2640.4,2640.0,0.8242]
[1729239361204,3.78789,2640.0,2639.5,0.8242]
[1729239361412,7.57536,2640.2,2639.6,3.78843]
[1729239362060,3.78766,2640.2,2639.6,3.78843]
[1729239362385,3.78766,2640.2,2639.7,3.78826]
[1729239362568,1.98404198,2640.7,2640.0,3.78786]
[1729239362772,3.78683,2640.8,2640.3,4.55252]
[1729239362971,5.36925032,2641.0,2640.5,3.78714]
[1729239362972,3.78654,2641.0,2640.5,3.78714]
[1729239363387,5.77034198,2641.1,2640.5,3.78703]
[1729239363556,5.77034198,2641.1,2640.6,3.78698]
[1729239363557,0.7902,2641.1,2640.6,3.78698]
[1729239363762,4.98008198,2641.2,2640.7,3.78686]
[1729239363962,4.98008198,2641.2,2640.6,3.78698]
[1729239363963,3.78624,2641.2,2640.8,0.7662]
[1729239364159,1.19384198,2641.3,2640.8,0.7662]
[1729239364662,4.97994198,2641.3,2640.8,0.7662]
[1729239364863,3.78621,2641.2,2640.8,0.7662]
[1729239365307,1.19384198,2641.3,2640.9,3.7865]
[1729239366068,5.36851032,2641.5,2640.9,3.7865]
[1729239366069,3.7858,2641.5,2640.9,3.7865]
[1729239366270,7.57166,2641.5,2640.9,3.7865]
[1729239366578,3.7858,2641.5,2640.9,3.86222345]
[1729239366764,3.7858,2641.5,2640.9,3.7865]
[1729239366968,3.78587,2641.4,2640.9,3.7865]
[1729239367164,3.7858,2641.5,2640.9,3.7865]
[1729239367403,3.78589,2641.4,2640.9,3.7865]
[1729239367773,3.78602,2641.3,2640.8,0.7662]
[1729239367974,3.78602,2641.3,2640.8,4.55285]
[1729239369204,4.97645748,2641.5,2640.9,3.78651]
[1729239369400,4.97645748,2641.5,2641.0,3.78639]
[1729239370292,1.19065748,2641.5,2641.1,4.60315]
[1729239370675,1.19065748,2641.5,2641.1,0.8169]
[1729239373014,3.78559,2641.6,2641.1,0.8169]
[1729239374423,3.78576,2641.5,2641.1,0.8169]
[1729239375328,1.19065748,2641.8,2641.3,3.0]
[1729239375477,1.58754331,2641.9,2641.6,4.45461287]
[1729239375696,1.58754331,2641.9,2641.2,0.7593]
[1729239375697,2.41534331,2641.9,2641.2,0.7593]
[1729239376029,3.78561,2641.6,2641.2,0.7593]
[1729239378239,3.78539,2641.8,2641.0,3.0]
[1729239378240,3.78594,2641.4,2641.0,0.8156]
[1729239378403,3.69531287,2641.6,2640.7,4.3031508]
[1729239378593,7.57248,2641.2,2640.7,4.3031508]
[1729239378792,7.57248,2641.2,2640.7,8.0899908]
[1729239378793,3.78624,2641.2,2640.7,8.0899908]
[1729239379826,3.78624,2641.2,2640.7,4.3031508]
[1729239380034,3.78673,2640.8,2640.7,3.4875508]
[1729239380193,3.78681,2640.8,2640.4,0.8156]
[1729239380797,3.7871,2640.6,2640.4,0.8156]
[1729239380991,4.52301287,2640.8,2640.1,0.8156]
[1729239381292,7.57447,2640.5,2640.0,3.4875508]
[1729239381632,3.78731,2640.4,2639.9,3.78801]
[1729239382327,3.78719,2640.5,2639.9,3.78794]
[1729239382534,3.78733,2640.4,2639.8,0.8156]
[1729239383031,3.78719,2640.5,2639.8,0.8156]
[1729239383032,3.78748,2640.3,2639.8,0.8156]
[1729239385425,3.78725,2640.5,2639.8,0.89135438]
[1729239385597,3.78725,2640.5,2639.9,3.78797]
[1729239386834,3.78725,2640.5,2639.8,0.8156]
[1729239387135,3.78748,2640.3,2639.8,0.8156]
[1729239388253,3.78748,2640.3,2639.8,4.60372]
[1729239388625,3.78725,2640.5,2639.8,4.60372]
[1729239388837,3.78736,2640.4,2639.8,4.60372]
[1729239389437,3.78725,2640.5,2639.8,4.60372]
[1729239389438,3.78745,2640.3,2639.8,4.60372]
[1729239391985,3.78745,2640.3,2639.8,8.39181]
[1729239392255,3.78745,2640.3,2639.8,4.60369]
[1729239392720,3.78745,2640.3,2639.8,8.39177]
[1729239392920,3.78724,2640.5,2639.9,3.78799]
[1729239393145,7.57453,2640.5,2639.9,3.78799]
[1729239394555,3.7873,2640.4,2639.9,3.78799]
[1729239394863,3.78724,2640.5,2639.9,3.78801]
[1729239395025,3.78733,2640.4,2639.8,4.60368]
[1729239395358,3.78747,2640.3,2639.8,0.8156]
[1729239395574,3.78747,2640.3,2639.5,3.78847]
[1729239395575,3.78796,2640.0,2639.5,3.8268]
[1729239395720,3.78796,2640.0,2639.5,0.8268]
[1729239395926,3.78804,2639.9,2639.5,0.8268]
[1729239397354,3.78784,2640.1,2639.5,4.61532]
[1729239397660,3.78789,2640.0,2639.5,4.61532]
[1729239398048,3.78769,2640.2,2639.6,3.78837]
[1729239398364,3.78769,2640.2,2639.6,3.78845]
[1729239398769,3.78769,2640.2,2639.5,4.61532]
[1729239398770,3.78769,2640.2,2639.7,3.78829]
[1729239398970,7.57537,2640.2,2639.7,3.78829]
[1729239399128,3.78768,2640.2,2639.8,0.7594]
[1729239401844,3.7873,2640.4,2639.8,0.7594]
[1729239402043,3.78762,2640.2,2639.8,0.7594]
[1729239402366,3.78774,2640.1,2639.8,0.7594]
[1729239402731,3.78762,2640.2,2639.8,0.7594]
[1729239405066,3.78738,2640.4,2639.8,4.54755]
[1729239405272,3.78751,2640.3,2639.8,4.54755]
[1729239405431,7.57476,2640.4,2639.9,3.78799]
[1729239405626,3.78738,2640.4,2639.9,3.78799]
[1729239406153,3.78738,2640.4,2639.9,3.78793]
[1729239406353,3.78711,2640.6,2640.1,4.56534]
[1729239406354,3.78709,2640.6,2640.1,4.56534]
[1729239406554,3.78719,2640.5,2640.1,0.7777]
[1729239407130,3.78709,2640.6,2640.1,0.7777]
[1729239407369,7.57422,2640.6,2640.1,0.7777]
[1729239407666,3.7872,2640.5,2640.1,0.7777]
[1729239407873,3.78719,2640.5,2640.1,0.7777]
[1729239411664,3.78669,2640.9,2640.3,3.78736]
[1729239412182,3.78673,2640.8,2640.3,3.78736]
[1729239413454,3.78673,2640.8,2640.4,0.8172]
[1729239413663,7.57339,2640.9,2640.4,4.68013211]
[1729239413990,3.78669,2640.9,2640.4,4.68013211]
[1729239414298,3.78669,2640.9,2640.4,4.60439]
[1729239415399,3.78639,2641.1,2640.5,7.57408]
[1729239415568,7.57281,2641.1,2640.5,3.78701]
[1729239415897,3.78652,2641.0,2640.5,3.78701]
[1729239419204,0.8263,2641.2,2640.4,4.6044]
[1729239419412,3.78661,2640.9,2640.4,0.8172]
[1729239419709,3.78723,2640.5,2640.2,0.7512]
[1729239420392,3.78702,2640.6,2640.2,0.7512]
[1729239421285,3.78694,2640.7,2640.2,0.7512]
[1729239421608,3.78701,2640.6,2640.2,0.7512]
[1729239422107,3.78717,2640.5,2640.2,0.7512]
[1729239422608,3.69531287,2640.9,2640.2,0.7512]
[1729239422814,3.78775,2640.1,2639.9,0.7583]
[1729239422971,3.78824,2639.8,2639.5,8.2078]
[1729239423175,0.7628,2640.2,2639.3,0.7978]
[1729239423176,3.69531287,2640.1,2639.3,0.7978]
[1729239423424,3.78859,2639.6,2639.3,0.7978]
[1729239423922,0.7628,2639.8,2639.0,0.7978]
[1729239423923,3.7887,2639.5,2639.0,0.7978]
[1729239424072,3.78869,2639.5,2639.0,0.7978]
[1729239424510,3.78882,2639.4,2639.0,0.7978]
[1729239424674,3.78889,2639.3,2639.0,0.7978]
[1729239424868,3.78869,2639.5,2639.0,0.7978]
[1729239425112,3.78912,2639.2,2639.0,0.7978]
[1729239426133,3.78881,2639.4,2639.0,0.7978]
[1729239426313,3.78891,2639.3,2639.0,0.7978]
[1729239426701,3.78881,2639.4,2639.0,0.7978]
[1729239427000,3.78904,2639.2,2639.0,0.7978]
[1729239427205,3.78904,2639.2,2638.7,0.8329]
[1729239427513,3.78926,2639.1,2638.5,3.4818708]
[1729239427716,7.57852,2639.1,2638.6,3.7898]
[1729239427897,3.78926,2639.1,2638.6,3.7898]
[1729239428301,3.78932,2639.0,2638.5,3.4818708]
[1729239428541,3.78914,2639.2,2638.5,3.4818708]
[1729239428741,3.78897,2639.3,2638.4,7.67983327]
[1729239428742,3.78926,2639.1,2638.4,7.67983327]
[1729239428912,3.78941,2639.0,2638.4,7.67983327]
[1729239429097,3.78941,2639.0,2638.4,11.46991327]
[1729239429303,3.78926,2639.1,2638.4,11.46991327]
[1729239429502,3.78926,2639.1,2638.5,3.79002]
[1729239430002,3.78931,2639.0,2638.4,4.67983327]
[1729239430529,3.78932,2639.0,2638.5,3.79001]
[1729239430848,3.78926,2639.1,2638.5,3.79001]
[1729239432345,3.78897,2639.3,2638.6,3.78986]
[1729239432509,3.78905,2639.2,2638.6,3.78986]
[1729239432705,3.78928,2639.1,2638.5,3.78995]
[1729239433013,3.78926,2639.1,2638.5,3.78995]
[1729239433338,3.78947,2638.9,2638.4,4.623]
[1729239433541,3.78961,2638.8,2638.4,0.8329]
[1729239433902,0.839428,2638.8,2638.4,0.8329]
[1729239434216,0.839428,2638.8,2637.8,3.75219882]
[1729239434217,0.839428,2638.8,2638.1,0.7527]
[1729239434403,0.839428,2638.8,2637.8,0.05688595]
[1729239434404,3.79017,2638.4,2637.8,3.84788595]
[1729239434605,3.79049,2638.2,2637.9,0.7527]
[1729239435050,4.60537,2638.4,2637.9,0.7527]
[1729239435051,0.8152,2638.4,2637.9,0.7527]
[1729239435211,7.57996,2638.6,2638.0,3.7907]
[1729239435525,3.78995,2638.6,2638.1,3.7905]
[1729239436005,4.629078,2638.8,2638.1,3.7905]
[1729239436204,3.78965,2638.8,2638.1,3.7905]
[1729239436406,7.56834,2638.9,2638.4,0.7913]
[1729239436638,0.7788,2638.9,2638.4,0.7913]
[1729239437042,0.7788,2639.2,2638.4,0.7913]
[1729239437240,0.7788,2639.2,2638.7,3.7897]
[1729239437544,3.78906,2639.2,2638.7,3.7897]
[1729239437841,4.56761,2639.4,2638.7,3.78964]
[1729239438049,4.167363,2639.6,2638.8,0.7913]
[1729239438050,3.78867,2639.5,2638.8,0.7913]
[1729239438204,3.78874,2639.4,2638.9,3.78937]
[1729239440009,3.78874,2639.4,2638.8,0.7913]
[1729239440208,3.78909,2639.2,2638.8,0.7913]
[1729239440431,3.7889,2639.3,2638.8,0.7913]
[1729239440743,3.7889,2639.3,2638.5,0.8149]
[1729239440744,3.78963,2638.8,2638.5,0.8149]
[1729239440916,3.78931,2639.0,2638.2,0.8149]
[1729239441124,0.8071,2638.9,2638.2,0.8149]
[1729239441453,0.8071,2638.9,2638.0,3.79065]
[1729239441454,3.78997,2638.6,2638.0,4.57923]
[1729239442004,7.57994,2638.6,2638.0,4.57923]
[1729239442209,3.78997,2638.6,2638.0,4.57923]
[1729239442409,7.58,2638.6,2638.0,4.57923]
[1729239442640,3.78997,2638.6,2638.1,3.7906]
[1729239442847,4.59658,2638.9,2638.3,3.79024]
[1729239443144,0.8071,2638.9,2638.4,3.79016]
[1729239443346,0.8071,2638.9,2638.5,0.786]
[1729239444433,3.78938,2639.0,2638.5,0.786]
[1729239444674,3.78938,2639.0,2638.5,4.57599]
[1729239445457,3.78938,2639.0,2638.5,0.786]
[1729239445856,3.78953,2638.9,2638.5,0.786]
[1729239446365,3.78938,2639.0,2638.5,0.786]
[1729239446563,7.57883,2639.0,2638.5,0.786]
[1729239446798,3.78946,2638.9,2638.5,0.786]
[1729239447459,0.7811,2638.8,2638.0,0.771]
[1729239447795,3.79005,2638.5,2638.0,4.56165]
[1729239447999,3.69531287,2638.4,2638.0,0.771]
[1729239448299,3.7907,2638.1,2637.6,0.771]
[1729239448522,3.79047,2638.2,2637.6,0.771]
[1729239448722,3.79071,2638.1,2637.6,0.771]
[1729239449311,3.7907,2638.1,2637.6,0.771]
[1729239449513,1.15063129,2638.3,2637.6,0.771]
[1729239449712,3.79076,2638.0,2637.6,0.771]
[1729239450375,3.79062,2638.1,2637.6,0.771]
[1729239450883,3.79079,2638.0,2637.6,0.771]
[1729239452910,3.7906,2638.1,2637.6,4.5623]
[1729239453079,3.78998,2638.6,2638.0,0.8287]
[1729239453275,3.2853323,2638.7,2638.1,0.8287]
[1729239453276,2.4890323,2638.7,2638.1,0.8287]
[1729239453504,4.5854,2639.2,2638.3,3.79031]
[1729239453671,3.7894,2639.0,2638.3,7.58062]
[1729239453879,3.7895,2638.9,2638.3,3.79031]
[1729239454071,3.78963,2638.8,2638.2,0.8287]
[1729239454622,3.78977,2638.7,2638.2,0.8287]
[1729239455476,3.78977,2638.7,2638.2,4.61912]
[1729239455676,3.78963,2638.8,2638.3,3.79027]
[1729239455900,3.78979,2638.7,2638.2,4.61915]
[1729239456083,3.78963,2638.8,2638.2,4.61915]
[1729239456476,3.78963,2638.8,2638.3,3.7903]
[1729239458504,3.78938,2639.0,2638.5,3.78995]
[1729239458704,3.78938,2639.0,2638.4,0.8157]
[1729239458916,3.78953,2638.9,2638.4,4.60587]
[1729239459205,3.78938,2639.0,2638.4,0.8157]
[1729239459206,0.458568,2639.0,2638.4,0.8157]
[1729239459398,4.247908,2639.0,2638.4,0.8157]
[1729239459599,3.78947,2638.9,2638.4,4.60586]
[1729239459819,3.78934,2639.0,2638.4,4.60586]
[1729239460379,3.78934,2639.0,2638.5,3.78996]
[1729239460921,3.78912,2639.2,2638.7,3.78972]
[1729239461084,9.2778523,2639.4,2638.8,0.7961]
[1729239461085,3.78882,2639.4,2638.8,0.7961]
[1729239461283,0.456572,2639.4,2638.8,0.7961]
[1729239461615,3.78917,2639.1,2638.8,0.7961]
[1729239462529,3.78913,2639.2,2638.8,0.7961]
[1729239463130,3.78959,2638.9,2638.5,0.8072]
[1729239463333,7.57913,2638.9,2638.5,0.8072]
[1729239463835,3.78954,2638.9,2638.5,0.8072]
[1729239464000,3.78934,2639.0,2638.5,4.59721]
[1729239464200,3.78922,2639.1,2638.5,4.59721]
[1729239464499,3.78935,2639.0,2638.5,4.59721]
[1729239465221,3.78931,2639.0,2638.5,0.8072]
[1729239465427,3.78946,2638.9,2638.5,0.8072]
[1729239465801,3.7894,2639.0,2638.5,4.59721]
[1729239466943,3.78922,2639.1,2638.5,4.59721]
[1729239467102,7.5785,2639.1,2638.5,8.38709]
[1729239467982,7.5785,2639.1,2638.5,4.59714]
[1729239468676,3.7894,2639.0,2638.5,4.59714]
[1729239470587,3.7894,2639.0,2638.5,8.38709]
[1729239471166,3.7894,2639.0,2638.5,4.59714]
[1729239471371,3.7894,2639.0,2638.5,8.38708]
[1729239471574,3.7894,2639.0,2638.5,4.59714]
[1729239472179,3.78954,2638.9,2638.5,0.8072]
[1729239472704,4.5895,2639.0,2638.5,4.59715]
[1729239473270,3.7894,2639.0,2638.5,4.59715]
[1729239473470,7.57884,2639.0,2638.5,4.59715]
[1729239473666,3.7894,2639.0,2638.5,4.59715]
[1729239474073,3.78961,2638.8,2638.5,0.8072]
[1729239480304,3.78917,2639.1,2638.6,3.78988]
[1729239480489,3.78917,2639.1,2638.6,3.7898]
[1729239480894,3.78891,2639.3,2638.6,3.7898]
[1729239481087,3.78913,2639.2,2638.7,4.59394]
[1729239481714,4.65668856,2639.3,2638.7,0.8042]
[1729239481715,0.86777856,2639.3,2638.7,0.8042]
[1729239481942,0.86777856,2639.3,2638.7,4.59393]
[1729239481943,3.78909,2639.2,2638.7,4.59393]
[1729239482072,7.57819,2639.2,2638.7,4.59393]
[1729239482508,3.78883,2639.4,2638.7,4.59392]
[1729239482706,3.78883,2639.4,2638.9,4.58158]
[1729239483019,3.78883,2639.4,2638.9,4.58165]
[1729239484158,4.56234,2639.6,2638.9,4.58165]
[1729239484159,3.78854,2639.6,2639.1,3.78907]
[1729239484308,3.78833,2639.7,2639.2,3.78901]
[1729239484510,5.37580331,2639.8,2639.3,0.7684]
[1729239484511,3.78826,2639.8,2639.3,0.7684]
[1729239484719,3.78826,2639.8,2639.3,4.55718]
[1729239485148,3.78826,2639.8,2639.3,0.7684]
[1729239485452,3.78826,2639.8,2639.3,4.55722]
[1729239485753,3.0,2639.9,2639.3,0.7684]
[1729239485922,3.7882,2639.8,2639.3,4.55726]
[1729239486125,7.57644,2639.8,2639.3,4.55726]
[1729239486325,3.7882,2639.8,2639.3,4.55726]
[1729239486533,3.78832,2639.7,2639.3,0.7684]
[1729239487660,4.55093,2640.0,2639.3,4.55726]
[1729239487842,4.55093,2640.0,2639.3,0.7684]
[1729239488023,3.78819,2639.8,2639.3,0.7684]
[1729239489529,3.78819,2639.8,2639.3,4.55726]
[1729239489919,7.57645,2639.8,2639.3,0.7684]
[1729239490118,3.78819,2639.8,2639.3,0.7684]
[1729239490319,3.78839,2639.7,2639.3,0.7684]
[1729239491124,0.763,2640.0,2639.3,0.7684]
[1729239491456,3.78896,2639.3,2638.9,0.7759]
[1729239491626,3.78875,2639.4,2638.9,4.56527]
[1729239492253,3.78861,2639.5,2639.0,3.78923]
[1729239492452,3.78855,2639.6,2639.1,0.802]
[1729239492947,3.78855,2639.6,2639.1,4.59115]
[1729239493356,3.78854,2639.6,2639.1,0.802]
[1729239493580,3.78871,2639.5,2639.1,0.802]
[1729239495183,3.78883,2639.4,2639.1,0.802]
[1729239495476,7.57769,2639.4,2639.1,0.802]
[1729239495652,3.78888,2639.3,2638.8,0.7949]
[1729239495862,3.78917,2639.1,2638.8,0.7949]
[1729239496577,3.78888,2639.3,2638.8,0.7949]
[1729239496781,7.47112874,2639.9,2638.6,3.7898]
[1729239496782,3.78841,2639.7,2639.1,0.7949]
[1729239496988,3.7886,2639.5,2639.1,0.7949]
[1729239497145,7.57684,2639.7,2639.1,4.58406]
[1729239497459,3.78845,2639.6,2639.1,4.58406]
[1729239497639,3.78845,2639.6,2639.1,0.7949]
[1729239497843,3.78841,2639.7,2639.1,4.58404]
[1729239499182,3.78841,2639.7,2639.1,0.7949]
[1729239499388,3.78841,2639.7,2639.3,0.7937]
[1729239500248,3.7884,2639.7,2639.3,0.7937]
[1729239501700,3.78825,2639.8,2639.3,0.7937]
[1729239502679,3.78816,2639.8,2639.3,0.7937]
[1729239504307,3.78816,2639.8,2639.3,4.58256]
[1729239505214,3.78816,2639.8,2639.3,0.7937]
[1729239505509,3.78832,2639.7,2639.3,0.7937]
[1729239506305,3.78812,2639.9,2639.3,4.58255]
[1729239506911,3.78795,2640.0,2639.4,3.78863]
[1729239507080,3.78795,2640.0,2639.5,0.7597]
[1729239507285,3.78795,2640.0,2639.5,4.5482]
[1729239507581,3.78768,2640.2,2639.6,3.78837]
[1729239507920,3.78774,2640.1,2639.7,0.7597]
[1729239508076,3.7879,2640.0,2639.7,0.7597]
[1729239509685,3.78802,2639.9,2639.7,0.7597]
[1729239509897,3.78774,2640.1,2639.7,0.7597]
[1729239510126,3.78796,2640.0,2639.7,0.7597]
[1729239510306,3.7881,2639.9,2639.7,0.7597]
[1729239510494,0.8227,2639.9,2639.4,0.8172]
[1729239510822,3.78859,2639.5,2639.4,0.8172]
[1729239511118,3.78859,2639.5,2639.0,0.8172]
[1729239511319,3.78825,2639.8,2639.0,4.60639]
[1729239511505,3.78855,2639.6,2639.2,0.8172]
[1729239512303,3.7886,2639.5,2639.2,0.8172]
[1729239512506,7.57709,2639.6,2639.2,0.8172]
[1729239512819,3.78854,2639.6,2639.2,0.8172]
[1729239514923,3.78824,2639.8,2639.2,4.60622]
[1729239515249,7.57652,2639.8,2639.2,4.60622]
[1729239515383,3.78831,2639.7,2639.2,4.60622]
[1729239515582,3.78824,2639.8,2639.4,0.7688]
[1729239517527,7.5765,2639.8,2639.4,0.7688]
[1729239517828,3.78824,2639.8,2639.4,0.7688]
[1729239518513,3.78824,2639.8,2639.3,3.78887]
[1729239518726,3.78804,2639.9,2639.4,3.78862]
[1729239519026,3.78804,2639.9,2639.5,0.7584]
[1729239519797,3.78797,2640.0,2639.5,0.7584]
[1729239519999,3.78797,2640.0,2639.5,4.54694]
[1729239520293,3.78797,2640.0,2639.1,3.69531287]
[1729239520294,3.78769,2640.2,2639.7,0.7912]
[1729239520499,3.78769,2640.2,2639.7,4.5795]
[1729239520719,3.78769,2640.2,2639.8,3.78816]
[1729239521141,3.78769,2640.2,2639.7,0.7912]
[1729239521142,3.78769,2640.2,2639.7,4.57947]
[1729239521791,3.78774,2640.1,2639.7,0.7912]
[1729239526738,1.58754331,2640.4,2639.7,0.7912]
[1729239527035,3.78782,2640.1,2639.7,0.7912]
[1729239527414,3.78811,2639.9,2639.7,0.7912]
[1729239527560,3.7881,2639.9,2639.5,0.8188]
[1729239528565,0.23512433,2640.3,2639.7,3.7883]
[1729239528566,3.78762,2640.2,2639.7,3.7883]
[1729239528765,3.78762,2640.2,2639.6,0.7922]
[1729239528766,3.78783,2640.1,2639.6,4.58061]
[1729239530166,3.78803,2639.9,2639.6,0.7922]
[1729239534938,7.57613,2639.9,2639.6,0.7922]
[1729239535131,3.78803,2639.9,2639.6,0.7922]
[1729239535327,1.569887,2639.9,2639.3,0.8187]
[1729239535527,3.78841,2639.7,2639.3,1.80225113]
[1729239535727,3.78841,2639.7,2639.3,1.80232622]
[1729239535968,3.78841,2639.7,2639.3,0.8187]
[1729239538467,3.78841,2639.7,2639.3,1.80254033]
[1729239538971,7.57641,2639.8,2639.3,1.80254033]
[1729239539178,3.78816,2639.8,2639.3,1.80254033]
[1729239539542,7.48292287,2640.2,2639.4,0.9033732]
[1729239539543,4.6071,2640.2,2639.4,0.9033732]
[1729239539836,3.78776,2640.1,2639.6,7.57684]
[1729239540041,3.78776,2640.1,2639.6,7.57678]
[1729239540269,4.6071,2640.2,2639.6,3.78836]
[1729239540463,4.6071,2640.2,2639.8,0.8276]
[1729239540667,8.3948,2640.2,2639.8,0.8276]
[1729239540875,4.6071,2640.2,2639.8,0.8276]
[1729239541377,3.78784,2640.1,2639.8,0.8276]
[1729239541887,3.78754,2640.3,2639.8,0.8276]
[1729239542063,3.78754,2640.3,2639.8,4.61567]
[1729239542442,9.2764223,2640.4,2639.8,4.61567]
[1729239542443,6.2764223,2640.4,2639.9,3.78792]
[1729239542778,3.78739,2640.4,2640.0,0.8261]
[1729239542980,3.78723,2640.5,2640.0,4.61392]
[1729239543146,4.55561,2640.6,2640.0,0.8261]
[1729239543474,3.78727,2640.5,2640.0,4.61393]
[1729239544677,3.78704,2640.6,2640.1,3.7877]
[1729239545246,3.78695,2640.7,2640.0,0.8261]
[1729239545566,3.78723,2640.5,2640.0,0.8261]
[1729239546185,3.78723,2640.5,2640.0,4.61396]
[1729239546687,3.78694,2640.7,2640.2,3.7875]
[1729239546995,3.78694,2640.7,2640.1,3.78771]
[1729239546996,3.78675,2640.8,2640.3,4.59642]
[1729239548061,6.78654,2641.0,2640.3,4.59642]
[1729239548401,3.78673,2640.8,2640.4,3.7872]
[1729239548601,6.78654,2641.0,2640.3,0.8091]
[1729239548602,3.69531287,2640.9,2640.3,0.8091]
[1729239548769,3.78695,2640.7,2640.3,0.8091]
[1729239549491,3.78703,2640.6,2640.3,0.8091]
[1729239549678,3.78684,2640.8,2640.3,0.8091]
[1729239550093,3.78707,2640.6,2640.3,0.8091]
[1729239550293,7.57389,2640.7,2640.3,0.8091]
[1729239550462,3.78702,2640.6,2640.3,0.8091]
[1729239550794,3.7869,2640.7,2640.3,0.8091]
[1729239551184,3.0,2641.0,2640.3,0.8091]
[1729239551498,3.78714,2640.6,2640.3,0.8091]
[1729239551797,7.57425,2640.6,2640.3,0.8091]
[1729239552221,3.78711,2640.6,2640.3,0.8091]
[1729239553097,7.57423,2640.6,2640.3,0.8091]
[1729239553396,3.78728,2640.5,2640.3,0.8091]
[1729239553596,3.7873,2640.4,2640.1,0.7868]
[1729239553796,0.7642,2640.7,2639.8,3.78805]
[1729239553797,3.78773,2640.1,2639.9,0.7868]
[1729239553973,3.78744,2640.3,2639.9,0.7868]
[1729239553974,3.78772,2640.2,2639.9,0.7868]